[Event "Titled Tuesday Blitz August 1 Early 2023"]
[White "Vafin, Ayrat"]
[Black "Hua, Lefong"]
[WhiteFideId "4146530"]
[BlackFideId "2602253"]
[WhiteElo "2235"]
[BlackElo "2641"]
[Result "0-1"]
[Round "2"]
[TimeControl "180+1"]
[Date "2023.08.01"]
[WhiteClock "0:00:06"]
[BlackClock "0:00:35"]
[Board "113"]

1. Nf3 {[%clk 0:03:00]}  Nf6 {[%clk 0:02:59]} 2. g3 {[%clk 0:03:01]}  g6 {[%clk 0:02:59]} 3. Bg2 {[%clk 0:03:01]}  Bg7 {[%clk 0:02:59]} 4. O-O {[%clk 0:03:02]}  O-O {[%clk 0:02:59]} 5. c4 {[%clk 0:03:02]}  c5 {[%clk 0:02:58]} 6. d4 {[%clk 0:03:03]}  d6 {[%clk 0:02:58]} 7. Nc3 {[%clk 0:03:02]}  Nc6 {[%clk 0:02:59]} 8. d5 {[%clk 0:03:02]}  Na5 {[%clk 0:02:59]} 9. Nd2 {[%clk 0:03:02]}  a6 {[%clk 0:02:58]} 10. Qc2 {[%clk 0:03:02]}  e6 {[%clk 0:02:56]} 11. dxe6 {[%clk 0:02:56]}  Bxe6 {[%clk 0:02:55]} 12. b3 {[%clk 0:02:56]}  Rb8 {[%clk 0:02:52]} 13. Bb2 {[%clk 0:02:51]}  b5 {[%clk 0:02:50]} 14. cxb5 {[%clk 0:02:47]}  axb5 {[%clk 0:02:50]} 15. Nce4 {[%clk 0:02:46]}  Bf5 {[%clk 0:02:40]} 16. Bxf6 {[%clk 0:02:16]}  Bxf6 {[%clk 0:02:39]} 17. Nxf6+ {[%clk 0:02:14]}  Qxf6 {[%clk 0:02:37]} 18. e4 {[%clk 0:01:17]}  Be6 {[%clk 0:02:30]} 19. Rad1 {[%clk 0:01:17]}  Nc6 {[%clk 0:02:25]} 20. Qd3 {[%clk 0:01:09]}  Nd4 {[%clk 0:02:16]} 21. Nf3 {[%clk 0:01:06]}  Bg4 {[%clk 0:01:53]} 22. Nxd4 {[%clk 0:01:04]}  Bxd1 {[%clk 0:01:53]} 23. Rxd1 {[%clk 0:01:04]}  cxd4 {[%clk 0:01:51]} 24. Qxd4 {[%clk 0:01:05]}  Qxd4 {[%clk 0:01:46]} 25. Rxd4 {[%clk 0:01:06]}  Rfd8 {[%clk 0:01:44]} 26. a4 {[%clk 0:00:49]}  bxa4 {[%clk 0:01:44]} 27. bxa4 {[%clk 0:00:50]}  Rb1+ {[%clk 0:01:44]} 28. Bf1 {[%clk 0:00:51]}  Rc8 {[%clk 0:01:39]} 29. Kg2 {[%clk 0:00:47]}  Ra1 {[%clk 0:01:37]} 30. Bc4 {[%clk 0:00:12]}  Kf8 {[%clk 0:01:33]} 31. Bb5 {[%clk 0:00:07]}  Ke7 {[%clk 0:01:31]} 32. Rd3 {[%clk 0:00:08]}  Rc2 {[%clk 0:01:30]} 33. Rf3 {[%clk 0:00:08]}  Raa2 {[%clk 0:01:28]} 34. h4 {[%clk 0:00:06]}  h5 {[%clk 0:01:28]} 35. Kg1 {[%clk 0:00:06]}  f6 {[%clk 0:01:26]} 36. Rf4 {[%clk 0:00:06]}  Ke6 {[%clk 0:01:24]} 37. Kg2 {[%clk 0:00:07]}  Ke5 {[%clk 0:01:22]} 38. Kg1 {[%clk 0:00:07]}  Rd2 {[%clk 0:01:11]} 39. Be8 {[%clk 0:00:06]}  g5 {[%clk 0:01:05]} 40. Rf5+ {[%clk 0:00:04]}  Kxe4 {[%clk 0:01:04]} 41. Rxf6 {[%clk 0:00:04]}  gxh4 {[%clk 0:01:02]} 42. gxh4 {[%clk 0:00:05]}  d5 {[%clk 0:01:02]} 43. Bxh5 {[%clk 0:00:04]}  Rxa4 {[%clk 0:00:57]} 44. Bg6+ {[%clk 0:00:03]}  Ke5 {[%clk 0:00:55]} 45. Rf5+ {[%clk 0:00:04]}  Ke6 {[%clk 0:00:56]} 46. h5 {[%clk 0:00:02]}  Rh4 {[%clk 0:00:50]} 47. Kg2 {[%clk 0:00:01]}  Rdd4 {[%clk 0:00:47]} 48. Rf3 {[%clk 0:00:01]}  Rdg4+ {[%clk 0:00:47]} 49. Kf1 {[%clk 0:00:02]}  Ke5 {[%clk 0:00:43]} 50. Ke2 {[%clk 0:00:03]}  d4 {[%clk 0:00:43]} 51. Kd3 {[%clk 0:00:03]}  Rf4 {[%clk 0:00:44]} 52. Rg3 {[%clk 0:00:03]}  Rxf2 {[%clk 0:00:43]} 53. Rg5+ {[%clk 0:00:04]}  Kf6 {[%clk 0:00:42]} 54. Ra5 {[%clk 0:00:04]}  Rf3+ {[%clk 0:00:42]} 55. Ke2 {[%clk 0:00:04]}  Rg3 {[%clk 0:00:41]} 56. Kf2 {[%clk 0:00:04]}  Rb3 {[%clk 0:00:40]} 57. Ra6+ {[%clk 0:00:03]}  Kg7 {[%clk 0:00:40]} 58. Ra5 {[%clk 0:00:04]}  Rh2+ {[%clk 0:00:39]} 59. Kg1 {[%clk 0:00:05]}  Rbb2 {[%clk 0:00:40]} 60. Ra7+ {[%clk 0:00:05]}  Kh6 {[%clk 0:00:39]} 61. Rh7+ {[%clk 0:00:05]}  Kg5 {[%clk 0:00:40]} 62. Rg7 {[%clk 0:00:06]}  Rbg2+ {[%clk 0:00:40]} 63. Kf1 {[%clk 0:00:06]}  Rb2 {[%clk 0:00:40]} 64. Kg1 {[%clk 0:00:07]}  Kf6 {[%clk 0:00:39]} 65. Rf7+ {[%clk 0:00:07]}  Ke6 {[%clk 0:00:39]} 66. Rf8 {[%clk 0:00:07]}  Rhg2+ {[%clk 0:00:37]} 67. Kf1 {[%clk 0:00:07]}  Rh2 {[%clk 0:00:37]} 68. Kg1 {[%clk 0:00:08]}  Rbg2+ {[%clk 0:00:37]} 69. Kf1 {[%clk 0:00:08]}  Rd2 {[%clk 0:00:37]} 70. Kg1 {[%clk 0:00:08]}  Ke7 {[%clk 0:00:37]} 71. Rf7+ {[%clk 0:00:08]}  Kd6 {[%clk 0:00:38]} 72. Rf8 {[%clk 0:00:08]}  Kc5 {[%clk 0:00:38]} 73. Rd8 {[%clk 0:00:08]}  Rb2 {[%clk 0:00:35]} 74. Rc8+ {[%clk 0:00:08]}  Kd5 {[%clk 0:00:35]} 75. Rd8+ {[%clk 0:00:08]}  Kc4 {[%clk 0:00:35]} 76. Rc8+ {[%clk 0:00:09]}  Kb4 {[%clk 0:00:35]} 77. Rb8+ {[%clk 0:00:09]}  Kc3 {[%clk 0:00:36]} 78. Rxb2 {[%clk 0:00:09]}  Rxb2 {[%clk 0:00:35]} 79. h6 {[%clk 0:00:09]}  Rb6 {[%clk 0:00:35]} 80. Be4 {[%clk 0:00:05]}  Rxh6 {[%clk 0:00:35]} 81. Kf2 {[%clk 0:00:05]}  Re6 {[%clk 0:00:34]} 82. Kf3 {[%clk 0:00:06]}  Rxe4 {[%clk 0:00:34]} 83. Kxe4 {[%clk 0:00:06]}  d3 {[%clk 0:00:35]} 0-1


[Site "https://www.chess.com"]

[Event "Titled Tuesday Blitz August 1 Early 2023"]
[White "Feliz Dotel, Dewar Bienvenido"]
[Black "Popilski, Gil"]
[WhiteFideId "6402801"]
[BlackFideId "2809060"]
[WhiteElo "2127"]
[BlackElo "2635"]
[Result "0-1"]
[Round "2"]
[TimeControl "180+1"]
[Date "2023.08.01"]
[WhiteClock "0:00:00"]
[BlackClock "0:01:08"]
[Board "115"]

1. d4 {[%clk 0:02:59]}  d5 {[%clk 0:02:59]} 2. e3 {[%clk 0:03:00]}  Bf5 {[%clk 0:02:58]} 3. Nf3 {[%clk 0:02:59]}  e6 {[%clk 0:02:57]} 4. c4 {[%clk 0:02:57]}  Nf6 {[%clk 0:02:56]} 5. Bd3 {[%clk 0:02:57]}  Bg6 {[%clk 0:02:53]} 6. Qc2 {[%clk 0:02:49]}  Nc6 {[%clk 0:02:52]} 7. a3 {[%clk 0:02:48]}  Na5 {[%clk 0:02:45]} 8. Nbd2 {[%clk 0:02:37]}  Bxd3 {[%clk 0:02:41]} 9. Qxd3 {[%clk 0:02:37]}  dxc4 {[%clk 0:02:33]} 10. Nxc4 {[%clk 0:02:37]}  c5 {[%clk 0:02:34]} 11. Nxa5 {[%clk 0:02:25]}  Qxa5+ {[%clk 0:02:33]} 12. Bd2 {[%clk 0:02:26]}  Qb6 {[%clk 0:02:33]} 13. O-O {[%clk 0:02:19]}  Rd8 {[%clk 0:02:30]} 14. Qc2 {[%clk 0:01:58]}  Be7 {[%clk 0:02:25]} 15. Qa4+ {[%clk 0:01:56]}  Nd7 {[%clk 0:02:16]} 16. dxc5 {[%clk 0:01:52]}  Qxc5 {[%clk 0:02:11]} 17. Rac1 {[%clk 0:01:37]}  Qb6 {[%clk 0:02:10]} 18. b4 {[%clk 0:01:22]}  O-O {[%clk 0:02:07]} 19. Qb3 {[%clk 0:01:16]}  Nf6 {[%clk 0:01:58]} 20. Bc3 {[%clk 0:01:14]}  Ne4 {[%clk 0:01:55]} 21. Bd4 {[%clk 0:01:10]}  Qa6 {[%clk 0:01:54]} 22. Qb2 {[%clk 0:01:09]}  f6 {[%clk 0:01:52]} 23. Rfd1 {[%clk 0:01:07]}  Rd7 {[%clk 0:01:48]} 24. Bc5 {[%clk 0:00:59]}  Rxd1+ {[%clk 0:01:43]} 25. Rxd1 {[%clk 0:01:00]}  Bxc5 {[%clk 0:01:43]} 26. bxc5 {[%clk 0:01:01]}  Nxc5 {[%clk 0:01:43]} 27. Nd4 {[%clk 0:00:58]}  Rd8 {[%clk 0:01:37]} 28. Rb1 {[%clk 0:00:55]}  b6 {[%clk 0:01:36]} 29. Nc6 {[%clk 0:00:54]}  Rd6 {[%clk 0:01:34]} 30. Nb4 {[%clk 0:00:53]}  Qa4 {[%clk 0:01:33]} 31. h3 {[%clk 0:00:52]}  Qd7 {[%clk 0:01:30]} 32. Qc2 {[%clk 0:00:50]}  Rd2 {[%clk 0:01:29]} 33. Qc4 {[%clk 0:00:45]}  Kf7 {[%clk 0:01:29]} 34. Qg4 {[%clk 0:00:40]}  a5 {[%clk 0:01:23]} 35. Qh5+ {[%clk 0:00:17]}  Kg8 {[%clk 0:01:22]} 36. Rc1 {[%clk 0:00:13]}  axb4 {[%clk 0:01:18]} 37. axb4 {[%clk 0:00:13]}  g6 {[%clk 0:01:18]} 38. Qf3 {[%clk 0:00:11]}  Nd3 {[%clk 0:01:14]} 39. Qa8+ {[%clk 0:00:10]}  Kg7 {[%clk 0:01:13]} 40. Rc8 {[%clk 0:00:11]}  Rd1+ {[%clk 0:01:12]} 41. Kh2 {[%clk 0:00:11]}  Qd6+ {[%clk 0:01:12]} 42. f4 {[%clk 0:00:11]}  Nxf4 {[%clk 0:01:10]} 43. Rg8+ {[%clk 0:00:11]}  Kh6 {[%clk 0:01:09]} 44. Qf8+ {[%clk 0:00:11]}  Qxf8 {[%clk 0:01:09]} 45. Rxf8 {[%clk 0:00:12]}  Ne2 {[%clk 0:01:09]} 46. Rb8 {[%clk 0:00:11]}  e5 {[%clk 0:01:08]} 47. Rxb6 {[%clk 0:00:11]}  Kg5 {[%clk 0:01:08]} 48. h4+ {[%clk 0:00:11]}  Kxh4 {[%clk 0:01:07]} 49. Rxf6 {[%clk 0:00:00]}  Ng3 {[%clk 0:01:08]} 0-1


[Site "https://www.chess.com"]

[Event "Titled Tuesday Blitz August 1 Early 2023"]
[White "Skiadopoulos, Nikolaos"]
[Black "Ovetchkin, Roman"]
[WhiteFideId "4200772"]
[BlackFideId "4119991"]
[WhiteElo "1841"]
[BlackElo "2633"]
[Result "0-1"]
[Round "2"]
[TimeControl "180+1"]
[Date "2023.08.01"]
[WhiteClock "0:00:00"]
[BlackClock "0:00:31"]
[Board "116"]

1. b4 {[%clk 0:03:00]}  d5 {[%clk 0:02:57]} 2. Bb2 {[%clk 0:02:59]}  Qd6 {[%clk 0:02:58]} 3. a3 {[%clk 0:02:58]}  e5 {[%clk 0:02:57]} 4. g3 {[%clk 0:02:57]}  f6 {[%clk 0:02:54]} 5. Bg2 {[%clk 0:02:56]}  c6 {[%clk 0:02:55]} 6. c4 {[%clk 0:02:52]}  Be6 {[%clk 0:02:54]} 7. cxd5 {[%clk 0:02:51]}  cxd5 {[%clk 0:02:54]} 8. Nc3 {[%clk 0:02:45]}  Nc6 {[%clk 0:02:53]} 9. Nb5 {[%clk 0:02:37]}  Qd7 {[%clk 0:02:52]} 10. Rc1 {[%clk 0:02:33]}  Nh6 {[%clk 0:02:45]} 11. e3 {[%clk 0:02:17]}  Be7 {[%clk 0:02:42]} 12. Ne2 {[%clk 0:02:16]}  O-O {[%clk 0:02:40]} 13. O-O {[%clk 0:02:12]}  a5 {[%clk 0:02:30]} 14. bxa5 {[%clk 0:01:56]}  Rxa5 {[%clk 0:02:29]} 15. a4 {[%clk 0:01:49]}  Rfa8 {[%clk 0:01:43]} 16. Nbc3 {[%clk 0:01:35]}  d4 {[%clk 0:01:13]} 17. exd4 {[%clk 0:01:31]}  exd4 {[%clk 0:01:13]} 18. Ne4 {[%clk 0:01:30]}  f5 {[%clk 0:01:06]} 19. Nf4 {[%clk 0:00:45]}  fxe4 {[%clk 0:01:02]} 20. Bxe4 {[%clk 0:00:45]}  Bf7 {[%clk 0:00:55]} 21. Qf3 {[%clk 0:00:36]}  Ne5 {[%clk 0:00:49]} 22. Qg2 {[%clk 0:00:20]}  Rb8 {[%clk 0:00:45]} 23. Nd3 {[%clk 0:00:11]}  Nc4 {[%clk 0:00:38]} 24. Rxc4 {[%clk 0:00:01]}  Bxc4 {[%clk 0:00:37]} 25. Nf4 {[%clk 0:00:00]}  Bf6 {[%clk 0:00:31]} 0-1


[Site "https://www.chess.com"]

[Event "Titled Tuesday Blitz August 1 Early 2023"]
[White "Jaskolka, Tomasz"]
[Black "Sosa, Tomas"]
[WhiteFideId "1170791"]
[BlackFideId "121576"]
[WhiteElo "2511"]
[BlackElo "2833"]
[Result "1-0"]
[Round "2"]
[TimeControl "180+1"]
[Date "2023.08.01"]
[WhiteClock "0:00:36"]
[BlackClock "0:01:09"]
[Board "118"]

1. d4 {[%clk 0:02:59]}  Nf6 {[%clk 0:02:59]} 2. Nc3 {[%clk 0:02:59]}  d5 {[%clk 0:02:59]} 3. Bf4 {[%clk 0:03:00]}  c5 {[%clk 0:02:59]} 4. e4 {[%clk 0:02:59]}  cxd4 {[%clk 0:02:58]} 5. Qxd4 {[%clk 0:02:58]}  Nc6 {[%clk 0:02:58]} 6. Bb5 {[%clk 0:02:58]}  Bd7 {[%clk 0:02:58]} 7. Bxc6 {[%clk 0:02:57]}  Bxc6 {[%clk 0:02:59]} 8. e5 {[%clk 0:02:58]}  Nd7 {[%clk 0:02:49]} 9. e6 {[%clk 0:02:27]}  fxe6 {[%clk 0:02:49]} 10. Nf3 {[%clk 0:02:27]}  Qb6 {[%clk 0:02:47]} 11. Qd2 {[%clk 0:02:19]}  d4 {[%clk 0:02:35]} 12. Nxd4 {[%clk 0:01:53]}  e5 {[%clk 0:02:27]} 13. Nxc6 {[%clk 0:01:51]}  exf4 {[%clk 0:02:26]} 14. Nd4 {[%clk 0:01:42]}  e5 {[%clk 0:02:22]} 15. Nf3 {[%clk 0:01:15]}  Bb4 {[%clk 0:02:09]} 16. O-O {[%clk 0:01:13]}  O-O-O {[%clk 0:02:01]} 17. Qe2 {[%clk 0:01:03]}  Bxc3 {[%clk 0:01:55]} 18. bxc3 {[%clk 0:01:03]}  Rhe8 {[%clk 0:01:50]} 19. Rab1 {[%clk 0:00:57]}  Qc6 {[%clk 0:01:49]} 20. Ng5 {[%clk 0:00:54]}  Nf6 {[%clk 0:01:41]} 21. Rb4 {[%clk 0:00:54]}  e4 {[%clk 0:01:38]} 22. Rc4 {[%clk 0:00:54]}  h6 {[%clk 0:01:27]} 23. Rxc6+ {[%clk 0:00:53]}  bxc6 {[%clk 0:01:28]} 24. Qa6+ {[%clk 0:00:47]}  Kc7 {[%clk 0:01:27]} 25. Qxa7+ {[%clk 0:00:45]}  Kd6 {[%clk 0:01:14]} 26. Rd1+ {[%clk 0:00:38]}  Nd5 {[%clk 0:01:13]} 27. Nf7+ {[%clk 0:00:37]}  Ke6 {[%clk 0:01:13]} 28. Nxd8+ {[%clk 0:00:37]}  Rxd8 {[%clk 0:01:09]} 29. c4 {[%clk 0:00:36]} 1-0


[Site "https://www.chess.com"]

[Event "Titled Tuesday Blitz August 1 Early 2023"]
[White "Neiksans, Arturs"]
[Black "NicolaiMaxime"]
[WhiteFideId "11601388"]
[WhiteElo "2816"]
[BlackElo "2487"]
[Result "0-1"]
[Round "2"]
[TimeControl "180+1"]
[Date "2023.08.01"]
[WhiteClock "0:00:00"]
[BlackClock "0:00:05"]
[Board "119"]

1. Nf3 {[%clk 0:03:00]}  g6 {[%clk 0:02:58]} 2. e4 {[%clk 0:02:59]}  Bg7 {[%clk 0:02:58]} 3. d4 {[%clk 0:03:00]}  d6 {[%clk 0:02:58]} 4. Bc4 {[%clk 0:02:59]}  a6 {[%clk 0:02:58]} 5. Qe2 {[%clk 0:02:58]}  Nc6 {[%clk 0:02:57]} 6. c3 {[%clk 0:02:56]}  Bg4 {[%clk 0:02:57]} 7. Bxf7+ {[%clk 0:02:55]}  Kf8 {[%clk 0:02:47]} 8. Bb3 {[%clk 0:02:49]}  e5 {[%clk 0:02:44]} 9. dxe5 {[%clk 0:02:35]}  Nxe5 {[%clk 0:02:43]} 10. Bf4 {[%clk 0:02:35]}  Bxf3 {[%clk 0:02:39]} 11. gxf3 {[%clk 0:02:35]}  Qf6 {[%clk 0:02:30]} 12. Bxe5 {[%clk 0:02:34]}  Qxe5 {[%clk 0:02:31]} 13. Nd2 {[%clk 0:02:32]}  Bh6 {[%clk 0:02:27]} 14. O-O-O {[%clk 0:02:31]}  Nf6 {[%clk 0:02:25]} 15. Kb1 {[%clk 0:02:31]}  Bxd2 {[%clk 0:02:23]} 16. Rxd2 {[%clk 0:02:31]}  Kg7 {[%clk 0:02:23]} 17. Qe3 {[%clk 0:02:29]}  Nh5 {[%clk 0:02:22]} 18. Rd5 {[%clk 0:02:29]}  Qf4 {[%clk 0:02:17]} 19. Rg1 {[%clk 0:02:29]}  Qxh2 {[%clk 0:02:02]} 20. Rdg5 {[%clk 0:02:07]}  Rhf8 {[%clk 0:01:42]} 21. Qe1 {[%clk 0:01:46]}  Nf6 {[%clk 0:01:26]} 22. e5 {[%clk 0:01:36]}  dxe5 {[%clk 0:01:23]} 23. Rxe5 {[%clk 0:01:36]}  Rae8 {[%clk 0:01:22]} 24. Re7+ {[%clk 0:01:36]}  Kh8 {[%clk 0:01:11]} 25. Rg5 {[%clk 0:01:12]}  Qd6 {[%clk 0:00:59]} 26. Rge5 {[%clk 0:01:12]}  Rxe7 {[%clk 0:00:55]} 27. Rxe7 {[%clk 0:01:13]}  b5 {[%clk 0:00:41]} 28. a3 {[%clk 0:01:13]}  c5 {[%clk 0:00:39]} 29. Bc2 {[%clk 0:01:08]}  b4 {[%clk 0:00:33]} 30. axb4 {[%clk 0:01:05]}  cxb4 {[%clk 0:00:33]} 31. cxb4 {[%clk 0:01:06]}  Rb8 {[%clk 0:00:31]} 32. Re6 {[%clk 0:01:02]}  Qd4 {[%clk 0:00:31]} 33. Qc3 {[%clk 0:00:59]}  Qxc3 {[%clk 0:00:21]} 34. bxc3 {[%clk 0:00:59]}  Nd5 {[%clk 0:00:19]} 35. Kb2 {[%clk 0:00:59]}  a5 {[%clk 0:00:19]} 36. Be4 {[%clk 0:00:53]}  Nf4 {[%clk 0:00:16]} 37. Rf6 {[%clk 0:00:46]}  Nh3 {[%clk 0:00:16]} 38. Kb3 {[%clk 0:00:41]}  axb4 {[%clk 0:00:16]} 39. c4 {[%clk 0:00:42]}  Nxf2 {[%clk 0:00:17]} 40. Bc6 {[%clk 0:00:41]}  Nd3 {[%clk 0:00:17]} 41. Bb5 {[%clk 0:00:38]}  Kg7 {[%clk 0:00:11]} 42. Rd6 {[%clk 0:00:38]}  Ne5 {[%clk 0:00:11]} 43. f4 {[%clk 0:00:39]}  Nf7 {[%clk 0:00:11]} 44. Rd5 {[%clk 0:00:36]}  h5 {[%clk 0:00:11]} 45. Kxb4 {[%clk 0:00:36]}  h4 {[%clk 0:00:11]} 46. c5 {[%clk 0:00:36]}  h3 {[%clk 0:00:11]} 47. Rd3 {[%clk 0:00:34]}  Rh8 {[%clk 0:00:10]} 48. Bc6 {[%clk 0:00:34]}  h2 {[%clk 0:00:10]} 49. Bh1 {[%clk 0:00:34]}  Kf6 {[%clk 0:00:08]} 50. c6 {[%clk 0:00:34]}  Ke7 {[%clk 0:00:08]} 51. Kc5 {[%clk 0:00:34]}  Nd8 {[%clk 0:00:08]} 52. Re3+ {[%clk 0:00:24]}  Ne6+ {[%clk 0:00:08]} 53. Kb6 {[%clk 0:00:24]}  Rb8+ {[%clk 0:00:08]} 54. Ka7 {[%clk 0:00:24]}  Rb1 {[%clk 0:00:07]} 55. c7 {[%clk 0:00:08]}  Rc1 {[%clk 0:00:06]} 56. Kb8 {[%clk 0:00:03]}  Kd7 {[%clk 0:00:04]} 57. Bb7 {[%clk 0:00:02]}  Rxc7 {[%clk 0:00:03]} 58. Rd3+ {[%clk 0:00:02]}  Ke7 {[%clk 0:00:03]} 59. Rh3 {[%clk 0:00:03]}  Rc2 {[%clk 0:00:03]} 60. Rh7+ {[%clk 0:00:03]}  Kf6 {[%clk 0:00:03]} 61. Bc8 {[%clk 0:00:04]}  Rb2+ {[%clk 0:00:04]} 62. Ka7 {[%clk 0:00:00]}  Nxf4 {[%clk 0:00:05]} 0-1


[Site "https://www.chess.com"]

[Event "Titled Tuesday Blitz August 1 Early 2023"]
[White "Rahman, Masruri"]
[Black "Necromon"]
[WhiteFideId "7101163"]
[WhiteElo "2784"]
[BlackElo "2464"]
[Result "1-0"]
[Round "2"]
[TimeControl "180+1"]
[Date "2023.08.01"]
[WhiteClock "0:01:27"]
[BlackClock "0:00:51"]
[Board "121"]

1. d4 {[%clk 0:03:00]}  d5 {[%clk 0:02:58]} 2. Bf4 {[%clk 0:02:57]}  Nf6 {[%clk 0:02:56]} 3. e3 {[%clk 0:02:58]}  c5 {[%clk 0:02:55]} 4. Nc3 {[%clk 0:02:58]}  Nc6 {[%clk 0:02:55]} 5. Nb5 {[%clk 0:02:58]}  e5 {[%clk 0:02:49]} 6. dxe5 {[%clk 0:02:59]}  Ne4 {[%clk 0:02:38]} 7. Qxd5 {[%clk 0:02:57]}  Qxd5 {[%clk 0:02:20]} 8. Nc7+ {[%clk 0:02:57]}  Kd8 {[%clk 0:02:20]} 9. Nxd5 {[%clk 0:02:58]}  Be6 {[%clk 0:02:20]} 10. Rd1 {[%clk 0:02:48]}  Kc8 {[%clk 0:02:09]} 11. f3 {[%clk 0:02:30]}  g5 {[%clk 0:02:04]} 12. fxe4 {[%clk 0:02:22]}  gxf4 {[%clk 0:02:04]} 13. exf4 {[%clk 0:02:23]}  Bh6 {[%clk 0:01:50]} 14. f5 {[%clk 0:01:52]}  Bd7 {[%clk 0:01:40]} 15. Nf3 {[%clk 0:01:48]}  Nd8 {[%clk 0:00:51]} 16. Be2 {[%clk 0:01:27]} 1-0


[Site "https://www.chess.com"]

[Event "Titled Tuesday Blitz August 1 Early 2023"]
[White "Dinu, Dumitru-Daniel"]
[Black "Fantastic_Power"]
[WhiteFideId "1208403"]
[WhiteElo "2462"]
[BlackElo "2750"]
[Result "0-1"]
[Round "2"]
[TimeControl "180+1"]
[Date "2023.08.01"]
[WhiteClock "0:00:06"]
[BlackClock "0:00:46"]
[Board "122"]

1. e4 {[%clk 0:03:00]}  c5 {[%clk 0:03:00]} 2. Nf3 {[%clk 0:03:00]}  Nc6 {[%clk 0:03:00]} 3. d4 {[%clk 0:03:00]}  cxd4 {[%clk 0:03:01]} 4. Nxd4 {[%clk 0:03:01]}  Nf6 {[%clk 0:03:01]} 5. Nc3 {[%clk 0:03:01]}  e6 {[%clk 0:03:02]} 6. Ndb5 {[%clk 0:02:59]}  Bc5 {[%clk 0:02:59]} 7. Bf4 {[%clk 0:02:59]}  O-O {[%clk 0:02:59]} 8. Bc7 {[%clk 0:02:59]}  Qe7 {[%clk 0:02:59]} 9. Bd6 {[%clk 0:02:59]}  Bxd6 {[%clk 0:03:00]} 10. Qxd6 {[%clk 0:02:59]}  Qd8 {[%clk 0:03:00]} 11. O-O-O {[%clk 0:02:57]}  a6 {[%clk 0:03:00]} 12. Nd4 {[%clk 0:02:57]}  Ne7 {[%clk 0:03:01]} 13. h4 {[%clk 0:02:53]}  b5 {[%clk 0:02:58]} 14. h5 {[%clk 0:02:42]}  Ne8 {[%clk 0:02:58]} 15. Qg3 {[%clk 0:02:37]}  Bb7 {[%clk 0:02:49]} 16. Bd3 {[%clk 0:02:27]}  Qc7 {[%clk 0:02:44]} 17. Qxc7 {[%clk 0:02:22]}  Nxc7 {[%clk 0:02:44]} 18. f3 {[%clk 0:02:19]}  h6 {[%clk 0:02:36]} 19. Nb3 {[%clk 0:02:13]}  Nc6 {[%clk 0:02:21]} 20. Nc5 {[%clk 0:02:09]}  Bc8 {[%clk 0:02:21]} 21. Be2 {[%clk 0:02:08]}  Rd8 {[%clk 0:02:20]} 22. Rd2 {[%clk 0:01:51]}  Kf8 {[%clk 0:02:15]} 23. Rhd1 {[%clk 0:01:49]}  Ke7 {[%clk 0:02:14]} 24. f4 {[%clk 0:01:33]}  d6 {[%clk 0:02:13]} 25. Nb3 {[%clk 0:01:33]}  Bb7 {[%clk 0:02:09]} 26. Bf3 {[%clk 0:01:28]}  b4 {[%clk 0:02:05]} 27. Ne2 {[%clk 0:01:24]}  a5 {[%clk 0:01:51]} 28. Nbd4 {[%clk 0:00:59]}  Nxd4 {[%clk 0:01:44]} 29. Nxd4 {[%clk 0:00:54]}  d5 {[%clk 0:01:37]} 30. exd5 {[%clk 0:00:35]}  Bxd5 {[%clk 0:00:57]} 31. Bxd5 {[%clk 0:00:34]}  Rxd5 {[%clk 0:00:58]} 32. Nc6+ {[%clk 0:00:32]}  Kf6 {[%clk 0:00:53]} 33. g4 {[%clk 0:00:20]}  Ra6 {[%clk 0:00:52]} 34. Rxd5 {[%clk 0:00:13]}  Nxd5 {[%clk 0:00:51]} 35. Ne5 {[%clk 0:00:09]}  Nxf4 {[%clk 0:00:49]} 36. Nd7+ {[%clk 0:00:09]}  Kg5 {[%clk 0:00:49]} 37. Nc5 {[%clk 0:00:08]}  Rc6 {[%clk 0:00:50]} 38. Ne4+ {[%clk 0:00:09]}  Kxg4 {[%clk 0:00:50]} 39. Rg1+ {[%clk 0:00:09]}  Kf5 {[%clk 0:00:46]} 40. Ng3+ {[%clk 0:00:07]}  Ke5 {[%clk 0:00:46]} 41. Re1+ {[%clk 0:00:07]}  Kf6 {[%clk 0:00:47]} 42. Ne4+ {[%clk 0:00:07]}  Ke7 {[%clk 0:00:47]} 43. Rf1 {[%clk 0:00:07]}  e5 {[%clk 0:00:44]} 44. Ng3 {[%clk 0:00:07]}  Ke6 {[%clk 0:00:44]} 45. Re1 {[%clk 0:00:06]}  Nd3+ {[%clk 0:00:44]} 46. Kd1 {[%clk 0:00:06]}  Nxe1 {[%clk 0:00:45]} 47. Kxe1 {[%clk 0:00:06]}  f5 {[%clk 0:00:46]} 0-1


[Site "https://www.chess.com"]

[Event "Titled Tuesday Blitz August 1 Early 2023"]
[White "Gaal, Zsoka"]
[Black "carokannlover213"]
[WhiteFideId "777765"]
[WhiteElo "2453"]
[BlackElo "2744"]
[Result "0-1"]
[Round "2"]
[TimeControl "180+1"]
[Date "2023.08.01"]
[WhiteClock "0:00:00"]
[BlackClock "0:00:08"]
[Board "123"]

1. Nf3 {[%clk 0:03:00]}  d6 {[%clk 0:03:00]} 2. g3 {[%clk 0:02:59]}  e5 {[%clk 0:02:59]} 3. Bg2 {[%clk 0:02:59]}  Nc6 {[%clk 0:03:00]} 4. O-O {[%clk 0:02:59]}  Bd7 {[%clk 0:03:00]} 5. d4 {[%clk 0:02:58]}  Qc8 {[%clk 0:02:49]} 6. c4 {[%clk 0:02:53]}  Bh3 {[%clk 0:02:44]} 7. Nc3 {[%clk 0:02:52]}  h5 {[%clk 0:02:42]} 8. dxe5 {[%clk 0:02:49]}  h4 {[%clk 0:02:23]} 9. exd6 {[%clk 0:02:23]}  Bxd6 {[%clk 0:02:23]} 10. Ne4 {[%clk 0:02:23]}  Be7 {[%clk 0:02:19]} 11. Bf4 {[%clk 0:02:12]}  f6 {[%clk 0:02:08]} 12. Qd5 {[%clk 0:01:38]}  Bxg2 {[%clk 0:01:54]} 13. Kxg2 {[%clk 0:01:37]}  g5 {[%clk 0:01:53]} 14. Bxg5 {[%clk 0:00:51]}  fxg5 {[%clk 0:01:51]} 15. Nfxg5 {[%clk 0:00:49]}  Nh6 {[%clk 0:01:41]} 16. Rad1 {[%clk 0:00:43]}  Rg8 {[%clk 0:00:49]} 17. Ne6 {[%clk 0:00:37]}  Rg6 {[%clk 0:00:44]} 18. Nf4 {[%clk 0:00:33]}  Rg8 {[%clk 0:00:42]} 19. Qh5+ {[%clk 0:00:27]}  Nf7 {[%clk 0:00:41]} 20. Rd5 {[%clk 0:00:24]}  Qg4 {[%clk 0:00:37]} 21. Qxg4 {[%clk 0:00:11]}  Rxg4 {[%clk 0:00:38]} 22. f3 {[%clk 0:00:11]}  Rg8 {[%clk 0:00:37]} 23. Ne6 {[%clk 0:00:11]}  Rc8 {[%clk 0:00:34]} 24. Rfd1 {[%clk 0:00:06]}  Ncd8 {[%clk 0:00:34]} 25. Nd4 {[%clk 0:00:05]}  hxg3 {[%clk 0:00:30]} 26. hxg3 {[%clk 0:00:05]}  c6 {[%clk 0:00:31]} 27. Rh5 {[%clk 0:00:05]}  Ng5 {[%clk 0:00:22]} 28. Nf5 {[%clk 0:00:06]}  Nxe4 {[%clk 0:00:20]} 29. fxe4 {[%clk 0:00:07]}  Nf7 {[%clk 0:00:19]} 30. Rh7 {[%clk 0:00:06]}  Rd8 {[%clk 0:00:13]} 31. Rf1 {[%clk 0:00:04]}  Bf6 {[%clk 0:00:10]} 32. Ne3 {[%clk 0:00:03]}  Rd6 {[%clk 0:00:08]} 33. c5 {[%clk 0:00:02]}  Re6 {[%clk 0:00:09]} 34. Nc4 {[%clk 0:00:03]}  Rh8 {[%clk 0:00:06]} 35. Rxh8+ {[%clk 0:00:02]}  Bxh8 {[%clk 0:00:07]} 36. e5 {[%clk 0:00:01]}  Bxe5 {[%clk 0:00:07]} 37. Nxe5 {[%clk 0:00:00]}  Rxe5 {[%clk 0:00:08]} 0-1


[Site "https://www.chess.com"]